[Event "Holiday Invitational-GM 2019"]
[Site "Charlotte"]
[Date "2019.12.28"]
[Round "4.1"]
[White "Jacobson, Brandon"]
[Black "Korley, Kassa"]
[Result "1/2-1/2"]
[ECO "A49"]
[WhiteElo "2472"]
[BlackElo "2432"]
[Annotator "ChessBase"]
[PlyCount "113"]
[EventDate "2019.12.26"]
[EventType "tourn"]
[EventCountry "USA"]
[SourceTitle "playchess.com"]
[Source "ChessBase"]
[SourceQuality "1"]
[TimeControl "5400+30"]

1. Nf3 {[%emt 0:04:14]} Nf6 {[%emt 0:01:33]} 2. c4 {[%emt 0:00:08]} g6 {[%emt 0:01:36]} 3. b3 {[%emt 0:06:16]} Bg7 {[%emt 0:00:20]} 4. Bb2 {[%emt 0:00:05]} O-O {[%emt 0:01:08]} 5. g3 {[%emt 0:00:05]} d6 {[%emt 0:00:03]} 6. d4 {[%emt 0:00:07]} a5 {[%emt 0:24:44]} 7. Bg2 {[%emt 0:07:47]} c6 {[%emt 0:03:46]} 8. O-O {[%emt 0:03:17]} Bf5 {[%emt 0:00:03]} 9. Re1 {[%emt 0:06:25]} Qc7 {[%emt 0:04:20]} 10. Nbd2 {[%emt 0:06:49]} a4 {[%emt 0:00:57]} 11. e4 {[%emt 0:05:49]} Bg4 {[%emt 0:02:17]} 12. b4 {[%emt 0:01:56]} a3 {[%emt 0:00:32]} 13. Bc3 {[%emt 0:00:02]} e5 {[%emt 0:07:21]} 14. dxe5 {[%emt 0:03:38]} dxe5 {[%emt 0:00:06]} 15. c5 {[%emt 0:00:04]} Rd8 {[%emt 0:04:47]} 16. Qc2 {[%emt 0:00:54]} Nfd7 {[%emt 0:01:51]} 17. Nc4 {[%emt 0:13:22]} Be6 {[%emt 0:00:19]} 18. Bf1 {[%emt 0:02:35]} f6 {[%emt 0:01:52]} 19. Red1 {[%emt 0:06:30]} Na6 {[%emt 0:00:07]} 20. Qc1 {[%emt 0:10:09]} Bf8 {[%emt 0:11:47]} 21. Nxa3 {[%emt 0:01:56]} b6 {[%emt 0:01:25]} 22. cxb6 {[%emt 0:05:25]} Nxb6 {[%emt 0:00:06]} 23. Rxd8 {[%emt 0:01:46]} Qxd8 {[%emt 0:00:02]} 24. Nc2 {[%emt 0:00:12]} c5 {[%emt 0:05:19]} 25. b5 {[%emt 0:02:09]} Nb4 {[%emt 0:00:11]} 26. Nxb4 {[%emt 0:01:45]} cxb4 {[%emt 0:00:03]} 27. Bd2 {[%emt 0:00:04]} Rxa2 {[%emt 0:09:57]} 28. Rxa2 {[%emt 0:01:49]} Bxa2 {[%emt 0:00:02]} 29. Bxb4 {[%emt 0:00:06]} Bxb4 {[%emt 0:00:31]} 30. Qb2 {[%emt 0:00:02]} Bc5 {[%emt 0:03:16]} 31. Qxa2+ {[%emt 0:00:07]} Kg7 {[%emt 0:00:01]} 32. Kg2 {[%emt 0:00:07]} Nc8 {[%emt 0:03:31]} 33. h4 {[%emt 0:03:27]} Nd6 {[%emt 0:00:25]} 34. Nd2 {[%emt 0:01:32]} Qb6 {[%emt 0:00:44]} 35. Nc4 {[%emt 0:00:22]} Nxc4 {[%emt 0:00:03]} 36. Bxc4 {[%emt 0:00:05]} Qd6 {[%emt 0:01:35]} 37. Bd5 {[%emt 0:01:40]} Bb6 {[%emt 0:00:04]} 38. Qe2 {[%emt 0:01:24]} Qc5 {[%emt 0:00:18]} 39. h5 {[%emt 0:00:08]} gxh5 {[%emt 0:01:16]} 40. Be6 {[%emt 0:00:17]} Kf8 {[%emt 0:02:13]} 41. Bf5 {[%emt 0:00:30]} Kg7 {[%emt 0:03:02]} 42. Bd7 {[%emt 0:00:16]} Qd4 {[%emt 0:00:43]} 43. Be8 {[%emt 0:02:12]} h4 {[%emt 0:00:52]} 44. gxh4 {[%emt 0:00:05]} f5 {[%emt 0:01:13]} 45. Bc6 {[%emt 0:00:05]} Kf6 {[%emt 0:01:11]} 46. Bb7 {[%emt 0:04:14]} f4 {[%emt 0:01:38]} 47. Bc8 {[%emt 0:00:07]} h5 {[%emt 0:00:44]} 48. Bf5 {[%emt 0:00:41]} Kg7 {[%emt 0:00:34]} 49. Qc2 {[%emt 0:01:08]} Bc5 {[%emt 0:00:03]} 50. Be6 {[%emt 0:00:28]} Qd6 {[%emt 0:02:11]} 51. Bf5 {[%emt 0:00:12]} Qd4 {[%emt 0:00:05]} 52. Qe2 {[%emt 0:00:40]} Bb6 {[%emt 0:00:05]} 53. Qf1 {[%emt 0:00:16]} Qd2 {[%emt 0:00:33]} 54. Qg1 {[%emt 0:00:23]} Kf8 {[%emt 0:00:24]} 55. Qf1 {[%emt 0:00:38]} Kg7 {[%emt 0:01:46]} 56. Qg1 {[%emt 0:00:44]} Kf8 {[%emt 0:00:04]} 57. Qf1 {[%emt 0:00:33]} 1/2-1/2

[Event "Holiday Invitational-GM 2019"]
[Site "Charlotte"]
[Date "2019.12.28"]
[Round "4.2"]
[White "Kaliksteyn, Alexander"]
[Black "Mishra, Abhimanyu"]
[Result "1/2-1/2"]
[ECO "A48"]
[WhiteElo "2381"]
[BlackElo "2397"]
[Annotator "NA"]
[PlyCount "23"]
[EventDate "2019.12.26"]
[EventType "tourn"]
[EventCountry "USA"]
[SourceTitle "playchess.com"]
[Source "ChessBase"]
[SourceQuality "1"]
[TimeControl "5400+30"]

1. d4 {[%emt 0:00:00]} Nf6 {[%emt 0:00:00]} 2. Nf3 {[%emt 0:00:00]} g6 {[%emt 0:00:00]} 3. Bf4 {[%emt 0:00:15]} Bg7 {[%emt 0:00:00]} 4. Nbd2 {[%emt 0:01:06]} d6 {[%emt 0:04:18]} 5. e4 {[%emt 0:01:14]} O-O {[%emt 0:03:36]} 6. c3 {[%emt 0:03:31]} b6 {[%emt 0:04:23]} 7. Bc4 {[%emt 0:03:32]} Bb7 {[%emt 0:04:42]} 8. Qc2 {[%emt 0:00:34]} d5 {[%emt 0:03:41]} 9. exd5 {[%emt 0:01:36]} Nxd5 {[%emt 0:00:05]} 10. Bg3 {[%emt 0:04:21]} Nd7 {[%emt 0:04:49]} 11. O-O {[%emt 0:01:11]} c5 {[%emt 0:08:53]} 12. Qb3 {[%emt 0:03:24]} 1/2-1/2

[Event "Holiday Invitational-GM 2019"]
[Site "Charlotte"]
[Date "2019.12.28"]
[Round "4.3"]
[White "Sinha, Sahil"]
[Black "Wang, Justin"]
[Result "1/2-1/2"]
[ECO "E35"]
[WhiteElo "2296"]
[BlackElo "2454"]
[Annotator "ChessBase"]
[PlyCount "212"]
[EventDate "2019.12.26"]
[EventType "tourn"]
[EventCountry "USA"]
[SourceTitle "playchess.com"]
[Source "ChessBase"]
[SourceQuality "1"]
[TimeControl "5400+30"]

1. d4 {[%emt 0:00:00]} Nf6 {[%emt 0:00:00]} 2. c4 {[%emt 0:00:00]} e6 {[%emt 0:00:00]} 3. Nc3 {[%emt 0:00:00]} Bb4 {[%emt 0:00:00]} 4. Qc2 {[%emt 0:00:00]} d5 {[%emt 0:01:16]} 5. cxd5 {[%emt 0:01:03]} exd5 {[%emt 0:00:07]} 6. Bg5 {[%emt 0:00:42]} h6 {[%emt 0:02:46]} 7. Bh4 {[%emt 0:00:43]} Be6 {[%emt 0:02:37]} 8. e3 {[%emt 0:01:14]} O-O {[%emt 0:01:25]} 9. Nf3 {[%emt 0:02:05]} Nbd7 {[%emt 0:03:20]} 10. Be2 {[%emt 0:03:43]} c5 {[%emt 0:10:33]} 11. dxc5 {[%emt 0:02:37]} Rc8 {[%emt 0:02:33]} 12. a3 {[%emt 0:02:41]} Bxc3+ {[%emt 0:09:03]} 13. Qxc3 {[%emt 0:00:16]} g5 {[%emt 0:05:32]} 14. Bg3 {[%emt 0:00:16]} Ne4 {[%emt 0:04:06]} 15. Qd4 {[%emt 0:02:07]} Ndxc5 {[%emt 0:05:23]} 16. Rd1 {[%emt 0:01:23]} h5 {[%emt 0:05:03]} 17. Nd2 {[%emt 0:09:06]} Nxd2 {[%emt 0:12:50]} 18. Qxd2 {[%emt 0:01:03]} h4 {[%emt 0:01:07]} 19. Be5 {[%emt 0:01:39]} Qe7 {[%emt 0:08:35]} 20. O-O {[%emt 0:04:37]} b6 {[%emt 0:04:13]} 21. b4 {[%emt 0:07:57]} Ne4 {[%emt 0:00:14]} 22. Qd3 {[%emt 0:02:20]} Bf5 {[%emt 0:07:41]} 23. Qd4 {[%emt 0:09:32]} Nc3 {[%emt 0:03:08]} 24. Bf3 {[%emt 0:01:16]} Rc4 {[%emt 0:04:02]} 25. Qxc3 {[%emt 0:00:49]} Rxc3 {[%emt 0:00:17]} 26. Bxc3 {[%emt 0:00:02]} Rc8 {[%emt 0:01:01]} 27. Rc1 {[%emt 0:01:42]} Qe6 {[%emt 0:00:43]} 28. h3 {[%emt 0:02:32]} g4 {[%emt 0:01:00]} 29. hxg4 {[%emt 0:00:37]} Bxg4 {[%emt 0:00:06]} 30. Bd4 {[%emt 0:06:18]} Bxf3 {[%emt 0:00:07]} 31. gxf3 {[%emt 0:00:46]} Rxc1 {[%emt 0:02:43]} 32. Rxc1 {[%emt 0:00:01]} Qf5 {[%emt 0:01:06]} 33. Kg2 {[%emt 0:00:54]} Kf8 {[%emt 0:01:41]} 34. Rc7 {[%emt 0:02:09]} h3+ {[%emt 0:01:21]} 35. Kg3 {[%emt 0:00:02]} h2 {[%emt 0:00:46]} 36. Kxh2 {[%emt 0:00:15]} Qxf3 {[%emt 0:00:10]} 37. Kg1 {[%emt 0:01:16]} Qd1+ {[%emt 0:00:01]} 38. Kg2 {[%emt 0:00:07]} Qa4 {[%emt 0:00:21]} 39. Bf6 {[%emt 0:01:25]} Kg8 {[%emt 0:00:11]} 40. Rc3 {[%emt 0:02:53]} Qd7 {[%emt 0:00:06]} 41. f3 {[%emt 0:00:59]} b5 {[%emt 0:01:17]} 42. Bd4 {[%emt 0:01:26]} a6 {[%emt 0:00:17]} 43. Kg3 {[%emt 0:01:13]} Qd6+ {[%emt 0:00:10]} 44. Kg2 {[%emt 0:02:26]} Qd7 {[%emt 0:00:30]} 45. Kg3 {[%emt 0:00:23]} Kh7 {[%emt 0:00:02]} 46. Rc5 {[%emt 0:02:10]} Kg6 {[%emt 0:00:14]} 47. Kf2 {[%emt 0:03:09]} Qd6 {[%emt 0:00:44]} 48. Ke2 {[%emt 0:00:22]} Kh7 {[%emt 0:00:34]} 49. Kd3 {[%emt 0:00:27]} Qg6+ {[%emt 0:01:13]} 50. e4 {[%emt 0:04:39]} dxe4+ {[%emt 0:00:15]} 51. fxe4 {[%emt 0:00:02]} Qg2 {[%emt 0:00:55]} 52. Rc2 {[%emt 0:03:18]} Qf1+ {[%emt 0:00:03]} 53. Kd2 {[%emt 0:00:31]} Qf3 {[%emt 0:00:45]} 54. e5 {[%emt 0:06:40]} Qxa3 {[%emt 0:00:19]} 55. Bc3 {[%emt 0:01:11]} Qb3 {[%emt 0:00:02]} 56. Rc1 {[%emt 0:00:05]} Qd5+ {[%emt 0:00:39]} 57. Ke3 {[%emt 0:00:13]} Qc4 {[%emt 0:00:26]} 58. Rc2 {[%emt 0:00:58]} a5 {[%emt 0:00:59]} 59. bxa5 {[%emt 0:00:15]} b4 {[%emt 0:00:25]} 60. Rh2+ {[%emt 0:00:05]} Kg6 {[%emt 0:01:11]} 61. Bd4 {[%emt 0:00:23]} Qb3+ {[%emt 0:00:56]} 62. Ke4 {[%emt 0:00:41]} Qb1+ {[%emt 0:00:05]} 63. Kd5 {[%emt 0:00:02]} Qf1 {[%emt 0:00:21]} 64. Kc5 {[%emt 0:01:31]} b3 {[%emt 0:01:19]} 65. Rb2 {[%emt 0:01:00]} Qd3 {[%emt 0:00:07]} 66. a6 {[%emt 0:00:25]} Qxa6 {[%emt 0:00:08]} 67. Rxb3 {[%emt 0:00:01]} Qc8+ {[%emt 0:00:10]} 68. Kb4 {[%emt 0:00:32]} Kf5 {[%emt 0:00:14]} 69. Bc3 {[%emt 0:01:53]} Ke4 {[%emt 0:00:32]} 70. Rb2 {[%emt 0:00:36]} Qb7+ {[%emt 0:00:20]} 71. Kc4 {[%emt 0:00:16]} Qc6+ {[%emt 0:00:37]} 72. Kb4 {[%emt 0:00:20]} Qa6 {[%emt 0:01:01]} 73. Rd2 {[%emt 0:00:13]} Qb6+ {[%emt 0:00:52]} 74. Kc4 {[%emt 0:00:09]} Qc6+ {[%emt 0:00:08]} 75. Kb4 {[%emt 0:00:08]} Qb7+ {[%emt 0:01:09]} 76. Kc4 {[%emt 0:00:09]} Qc7+ {[%emt 0:00:01]} 77. Kb4 {[%emt 0:00:10]} Ke3 {[%emt 0:00:54]} 78. Rd6 {[%emt 0:00:18]} Qb7+ {[%emt 0:00:28]} 79. Kc4 {[%emt 0:00:09]} Qc8+ {[%emt 0:00:37]} 80. Kb4 {[%emt 0:00:13]} Qb8+ {[%emt 0:00:19]} 81. Kc4 {[%emt 0:00:06]} Qb1 {[%emt 0:00:04]} 82. Rd2 {[%emt 0:00:35]} Qf1+ {[%emt 0:00:45]} 83. Kb4 {[%emt 0:00:18]} Qf4+ {[%emt 0:00:34]} 84. Kb3 {[%emt 0:00:13]} Qe4 {[%emt 0:00:34]} 85. Rd6 {[%emt 0:00:48]} Qb1+ {[%emt 0:00:07]} 86. Kc4 {[%emt 0:00:27]} Qa2+ {[%emt 0:00:10]} 87. Kb4 {[%emt 0:00:19]} Ke4 {[%emt 0:00:49]} 88. Rd2 {[%emt 0:00:15]} Qb1+ {[%emt 0:00:20]} 89. Kc4 {[%emt 0:00:17]} Qb7 {[%emt 0:00:46]} 90. Re2+ {[%emt 0:00:16]} Kf3 {[%emt 0:00:10]} 91. Rd2 {[%emt 0:00:27]} Qc7+ {[%emt 0:00:13]} 92. Kb3 {[%emt 0:01:41]} Ke3 {[%emt 0:00:23]} 93. Kc2 {[%emt 0:00:57]} Qc4 {[%emt 0:00:53]} 94. Kb2 {[%emt 0:00:54]} Ke4 {[%emt 0:00:32]} 95. Rd6 {[%emt 0:01:33]} Qb5+ {[%emt 0:00:03]} 96. Kc2 {[%emt 0:00:14]} Qc5 {[%emt 0:00:44]} 97. Rd2 {[%emt 0:01:23]} Qc4 {[%emt 0:00:12]} 98. Kb2 {[%emt 0:00:18]} Qb5+ {[%emt 0:00:32]} 99. Kc2 {[%emt 0:00:06]} Qa4+ {[%emt 0:00:22]} 100. Kb2 {[%emt 0:00:16]} Qa8 {[%emt 0:00:08]} 101. Rd4+ {[%emt 0:00:56]} Ke3 {[%emt 0:00:19]} 102. Rd2 {[%emt 0:00:03]} Qa7 {[%emt 0:01:30]} 103. Kb3 {[%emt 0:00:34]} Qb7+ {[%emt 0:00:44]} 104. Kc2 {[%emt 0:00:07]} Qb5 {[%emt 0:00:04]} 105. Rd6 {[%emt 0:01:43]} Qc4 {[%emt 0:00:11]} 106. Kb2 {[%emt 0:01:15]} Qb5+ {[%emt 0:00:20]} 1/2-1/2

[Event "Holiday Invitational-GM 2019"]
[Site "Charlotte"]
[Date "2019.12.28"]
[Round "4.4"]
[White "Iotov, Valentin"]
[Black "Karthik Venkataraman"]
[Result "1/2-1/2"]
[ECO "A35"]
[WhiteElo "2516"]
[BlackElo "2470"]
[Annotator "ChessBase"]
[PlyCount "53"]
[EventDate "2019.12.26"]
[EventType "tourn"]
[EventCountry "USA"]
[SourceTitle "playchess.com"]
[Source "ChessBase"]
[SourceQuality "1"]
[TimeControl "5400+30"]

1. c4 {[%emt 0:00:00]} c5 {[%emt 0:00:00]} 2. Nf3 {[%emt 0:00:01]} Nc6 {[%emt 0:00:00]} 3. Nc3 {[%emt 0:00:08]} g6 {[%emt 0:00:05]} 4. e3 {[%emt 0:04:52]} Nf6 {[%emt 0:00:06]} 5. d4 {[%emt 0:00:04]} cxd4 {[%emt 0:00:05]} 6. exd4 {[%emt 0:00:04]} d5 {[%emt 0:00:04]} 7. cxd5 {[%emt 0:00:21]} Nxd5 {[%emt 0:00:05]} 8. Qb3 {[%emt 0:00:05]} e6 {[%emt 0:00:04]} 9. Bb5 {[%emt 0:07:43]} Bg7 {[%emt 0:00:10]} 10. O-O {[%emt 0:00:19]} O-O {[%emt 0:00:04]} 11. Bxc6 {[%emt 0:00:42]} bxc6 {[%emt 0:00:04]} 12. Na4 {[%emt 0:01:16]} Qd6 {[%emt 0:00:34]} 13. Re1 {[%emt 0:03:18]} Rb8 {[%emt 0:00:09]} 14. Qd1 {[%emt 0:03:37]} Ne7 {[%emt 0:09:24]} 15. Re4 {[%emt 0:28:11]} Qd5 {[%emt 0:07:42]} 16. Nc3 {[%emt 0:16:46]} Qa5 {[%emt 0:02:01]} 17. Qa4 {[%emt 0:01:54]} Qxa4 {[%emt 0:07:24]} 18. Nxa4 {[%emt 0:00:02]} Nf5 {[%emt 0:00:05]} 19. b3 {[%emt 0:02:10]} Rd8 {[%emt 0:00:12]} 20. Bb2 {[%emt 0:00:06]} Rb4 {[%emt 0:04:08]} 21. Rd1 {[%emt 0:01:33]} Rb5 {[%emt 0:21:57]} 22. Nc3 {[%emt 0:03:51]} Rb7 {[%emt 0:02:09]} 23. Ba3 {[%emt 0:00:25]} Rbd7 {[%emt 0:02:41]} 24. Bc5 {[%emt 0:00:05]} Nd6 {[%emt 0:00:54]} 25. Re3 {[%emt 0:04:30]} Nf5 {[%emt 0:00:33]} 26. Re4 {[%emt 0:03:26]} Nd6 {[%emt 0:00:05]} 27. Re3 {[%emt 0:00:37]} 1/2-1/2

[Event "Holiday Invitational-GM 2019"]
[Site "Charlotte"]
[Date "2019.12.28"]
[Round "4.5"]
[White "Steingrimsson, Hedinn"]
[Black "Balakrishnan, Praveen"]
[Result "1/2-1/2"]
[ECO "E73"]
[WhiteElo "2530"]
[BlackElo "2466"]
[Annotator "RC"]
[PlyCount "165"]
[EventDate "2019.12.26"]
[EventType "tourn"]
[EventCountry "USA"]
[SourceTitle "playchess.com"]
[Source "ChessBase"]
[SourceQuality "1"]
[TimeControl "5400+30"]

1. d4 {[%emt 1:30:30]} Nf6 {[%emt 0:01:21]} 2. c4 {[%emt 0:00:00]} g6 {[%emt 0:00:15]} 3. Nc3 {[%emt 0:00:00]} Bg7 {[%emt 0:00:09]} 4. e4 {[%emt 0:00:00]} d6 {[%emt 0:00:07]} 5. Be2 {[%emt 0:00:00]} O-O {[%emt 0:00:07]} 6. Be3 {[%emt 0:00:00]} e5 {[%emt 0:02:45]} 7. d5 {[%emt 0:00:00]} a5 {[%emt 0:09:36]} 8. g4 {[%emt 0:00:00]} Nfd7 {[%emt 0:05:02]} 9. h4 {[%emt 0:00:00]} Nc5 {[%emt 0:07:21]} 10. h5 {[%emt 0:00:00]} g5 {[%emt 0:13:54]} 11. Qd2 {[%emt 0:00:00]} h6 {[%emt 0:02:10]} 12. f3 {[%emt 0:00:00]} Bd7 {[%emt 0:08:58]} 13. Nh3 {[%emt 0:00:00]} Na4 {[%emt 0:04:46]} 14. Nd1 {[%emt 0:00:00]} c5 {[%emt 0:05:03]} 15. O-O {[%emt 0:00:00]} Nb6 {[%emt 0:01:57]} 16. Nhf2 {[%emt 0:00:00]} Ra7 {[%emt 0:06:14]} 17. Nh1 {[%emt 0:00:00]} Na8 {[%emt 0:07:39]} 18. Qe1 {[%emt 0:00:00]} Nc7 {[%emt 0:03:26]} 19. Bd2 {[%emt 0:00:00]} b6 {[%emt 0:02:41]} 20. Ne3 {[%emt 0:00:00]} Nba6 {[%emt 0:00:38]} 21. Ng3 {[%emt 0:00:00]} Re8 {[%emt 0:05:57]} 22. Rb1 {[%emt 0:00:00]} Qa8 {[%emt 0:00:56]} 23. b3 {[%emt 0:00:00]} Rb8 {[%emt 0:02:06]} 24. a3 {[%emt 0:00:00]} Bf8 {[%emt 0:00:51]} 25. Bd3 {[%emt 0:00:00]} Rbb7 {[%emt 0:01:56]} 26. Rb2 {[%emt 0:00:00]} Qd8 {[%emt 0:00:25]} 27. Qe2 {[%emt 0:00:00]} Qb8 {[%emt 0:00:23]} 28. Rfb1 {[%emt 0:00:00]} Qd8 {[%emt 0:00:12]} 29. Qe1 {[%emt 0:00:00]} Qb8 {[%emt 0:00:13]} 30. Be2 {[%emt 0:00:00]} Qd8 {[%emt 0:00:21]} 31. Kh2 {[%emt 0:00:00]} Qb8 {[%emt 0:00:35]} 32. Kh3 {[%emt 0:00:00]} Qd8 {[%emt 0:00:17]} 33. Qc1 {[%emt 0:00:00]} Qb8 {[%emt 0:00:24]} 34. Qg1 {[%emt 0:00:00]} Qd8 {[%emt 0:00:12]} 35. Nc2 {[%emt 0:00:00]} Qe8 {[%emt 0:03:16]} 36. Be3 {[%emt 0:00:00]} Na8 {[%emt 0:02:39]} 37. Bf1 {[%emt 0:03:13]} Qc8 {[%emt 0:00:36]} 38. Qf2 {[%emt 0:00:44]} Qe8 {[%emt 0:00:22]} 39. Be2 {[%emt 0:02:55]} Qc8 {[%emt 0:00:07]} 40. Qg1 {[%emt 0:00:01]} Qe8 {[%emt 0:00:08]} 41. Ra2 {[%emt 0:00:15]} Qc8 {[%emt 0:01:36]} 42. Qf1 {[%emt 0:00:56]} N8c7 {[%emt 0:00:44]} 43. Qg1 {[%emt 0:01:00]} Na8 {[%emt 0:00:05]} 44. Rba1 {[%emt 0:00:37]} Qb8 {[%emt 0:01:21]} 45. Qe1 {[%emt 0:00:37]} N8c7 {[%emt 0:00:25]} 46. b4 {[%emt 0:01:02]} axb4 {[%emt 0:00:44]} 47. axb4 {[%emt 0:00:00]} cxb4 {[%emt 0:01:16]} 48. Nxb4 {[%emt 0:00:02]} Nc5 {[%emt 0:00:41]} 49. Qb1 {[%emt 0:00:02]} Rxa2 {[%emt 0:00:39]} 50. Qxa2 {[%emt 0:00:05]} Qe8 {[%emt 0:00:22]} 51. Rb1 {[%emt 0:04:45]} Rb8 {[%emt 0:00:50]} 52. Nc2 {[%emt 0:01:25]} Qc8 {[%emt 0:00:33]} 53. Rb2 {[%emt 0:00:33]} Na4 {[%emt 0:00:33]} 54. Rb3 {[%emt 0:00:32]} Na6 {[%emt 0:00:20]} 55. Bf1 {[%emt 0:01:07]} N4c5 {[%emt 0:00:35]} 56. Rb1 {[%emt 0:01:35]} Na4 {[%emt 0:00:09]} 57. Qa3 {[%emt 0:00:38]} N4c5 {[%emt 0:00:35]} 58. Bg1 {[%emt 0:00:21]} Be7 {[%emt 0:00:26]} 59. Ne3 {[%emt 0:00:16]} Bf8 {[%emt 0:00:20]} 60. Be2 {[%emt 0:00:24]} Be7 {[%emt 0:00:29]} 61. Ngf5 {[%emt 0:00:41]} Bf8 {[%emt 0:00:06]} 62. Bf2 {[%emt 0:00:05]} Kh7 {[%emt 0:00:21]} 63. Ng3 {[%emt 0:00:31]} Kg8 {[%emt 0:00:06]} 64. Nd1 {[%emt 0:00:08]} Na4 {[%emt 0:00:35]} 65. Qc1 {[%emt 0:00:31]} Be7 {[%emt 0:00:35]} 66. Ne3 {[%emt 0:00:37]} Bf8 {[%emt 0:00:21]} 67. Bd1 {[%emt 0:00:32]} N4c5 {[%emt 0:00:18]} 68. Bc2 {[%emt 0:00:07]} Qc7 {[%emt 0:01:48]} 69. Nd1 {[%emt 0:00:32]} Qd8 {[%emt 0:00:35]} 70. Nc3 {[%emt 0:00:18]} Qf6 {[%emt 0:00:10]} 71. Kg2 {[%emt 0:00:07]} Qd8 {[%emt 0:00:13]} 72. Qa3 {[%emt 0:00:31]} Ra8 {[%emt 0:00:31]} 73. Qb2 {[%emt 0:00:03]} Rb8 {[%emt 0:00:07]} 74. Ra1 {[%emt 0:00:05]} Qc8 {[%emt 0:00:44]} 75. Qb1 {[%emt 0:01:20]} Be8 {[%emt 0:01:14]} 76. Ra2 {[%emt 0:00:08]} Bd7 {[%emt 0:00:20]} 77. Rb2 {[%emt 0:00:22]} Qc7 {[%emt 0:00:14]} 78. Nf1 {[%emt 0:00:13]} Be7 {[%emt 0:00:27]} 79. Ne3 {[%emt 0:00:04]} Bf8 {[%emt 0:00:29]} 80. Ra2 {[%emt 0:01:06]} Qc8 {[%emt 0:00:23]} 81. Rb2 {[%emt 0:01:13]} Qc7 {[%emt 0:00:07]} 82. Qd1 {[%emt 0:00:04]} Qc8 {[%emt 0:00:50]} 83. Qb1 {[%emt 0:01:40]} 1/2-1/2

[Event "Holiday Invitational-GM 2019"]
[Site "Charlotte"]
[Date "2019.12.29"]
[Round "6.2"]
[White "Sinha, Sahil"]
[Black "Karthik Venkataraman"]
[Result "0-1"]
[ECO "E39"]
[WhiteElo "2296"]
[BlackElo "2470"]
[Annotator "ChessBase"]
[PlyCount "102"]
[EventDate "2019.12.26"]
[EventType "tourn"]
[EventCountry "USA"]
[SourceTitle "playchess.com"]
[Source "ChessBase"]
[SourceQuality "1"]
[TimeControl "5400+30"]

1. d4 {[%emt 0:00:00]} Nf6 {[%emt 0:00:19]} 2. c4 {[%emt 0:00:00]} e6 {[%emt 0:00:36]} 3. Nc3 {[%emt 0:00:05]} Bb4 {[%emt 0:00:18]} 4. Qc2 {[%emt 0:00:10]} O-O {[%emt 0:00:10]} 5. Nf3 {[%emt 0:00:10]} c5 {[%emt 0:00:15]} 6. dxc5 {[%emt 0:00:30]} Na6 {[%emt 0:00:07]} 7. g3 {[%emt 0:00:09]} Nxc5 {[%emt 0:00:13]} 8. Bg2 {[%emt 0:00:14]} Nce4 {[%emt 0:00:06]} 9. O-O {[%emt 0:00:30]} Bxc3 {[%emt 0:00:05]} 10. bxc3 {[%emt 0:00:08]} Qc7 {[%emt 0:00:02]} 11. Bf4 {[%emt 0:09:27]} d6 {[%emt 0:00:17]} 12. Nd2 {[%emt 0:09:28]} Nc5 {[%emt 0:00:49]} 13. Nb3 {[%emt 0:02:05]} e5 {[%emt 0:01:11]} 14. Bg5 {[%emt 0:01:35]} Ncd7 {[%emt 0:00:11]} 15. Rfd1 {[%emt 0:03:56]} a5 {[%emt 0:01:13]} 16. Rab1 {[%emt 0:02:25]} h6 {[%emt 0:06:50]} 17. Bxf6 {[%emt 0:02:29]} Nxf6 {[%emt 0:00:05]} 18. Qd3 {[%emt 0:00:19]} Rd8 {[%emt 0:04:56]} 19. Nd2 {[%emt 0:01:09]} Rb8 {[%emt 0:00:29]} 20. Nf1 {[%emt 0:04:24]} Be6 {[%emt 0:00:11]} 21. Ne3 {[%emt 0:01:01]} b6 {[%emt 0:00:44]} 22. Bd5 {[%emt 0:04:39]} Bc8 {[%emt 0:14:38]} 23. Bf3 {[%emt 0:04:19]} Ba6 {[%emt 0:11:52]} 24. Nd5 {[%emt 0:10:24]} Nxd5 {[%emt 0:00:06]} 25. Bxd5 {[%emt 0:00:03]} Rdc8 {[%emt 0:00:05]} 26. Rb2 {[%emt 0:03:48]} Kh8 {[%emt 0:00:53]} 27. h4 {[%emt 0:01:41]} Rf8 {[%emt 0:02:07]} 28. Rdb1 {[%emt 0:02:50]} f5 {[%emt 0:02:14]} 29. Rd1 {[%emt 0:09:01]} Rf6 {[%emt 0:01:17]} 30. Kg2 {[%emt 0:00:30]} Rc8 {[%emt 0:03:02]} 31. Qe3 {[%emt 0:01:09]} Rb8 {[%emt 0:00:34]} 32. Qd3 {[%emt 0:00:49]} Rc8 {[%emt 0:02:07]} 33. Qe3 {[%emt 0:00:28]} Bxc4 {[%emt 0:01:44]} 34. Qxb6 {[%emt 0:03:51]} Qxb6 {[%emt 0:01:49]} 35. Rxb6 {[%emt 0:00:05]} Bxe2 {[%emt 0:00:04]} 36. Rd2 {[%emt 0:00:08]} Bh5 {[%emt 0:00:55]} 37. c4 {[%emt 0:00:22]} e4 {[%emt 0:07:03]} 38. Rdb2 {[%emt 0:03:43]} Bf3+ {[%emt 0:05:05]} 39. Kh2 {[%emt 0:06:46]} f4 {[%emt 0:04:57]} 40. Rb7 {[%emt 0:03:10]} fxg3+ {[%emt 0:02:43]} 41. Kxg3 {[%emt 0:00:24]} Rg6+ {[%emt 0:08:27]} 42. Kh3 {[%emt 0:01:04]} Rg1 {[%emt 0:00:21]} 43. Re7 {[%emt 0:00:44]} Rf8 {[%emt 0:01:53]} 44. Rd2 {[%emt 0:03:53]} Rf4 {[%emt 0:03:34]} 45. Re8+ {[%emt 0:00:24]} Kh7 {[%emt 0:00:05]} 46. Bg8+ {[%emt 0:00:14]} Kg6 {[%emt 0:00:05]} 47. Be6 {[%emt 0:06:03]} Kh5 {[%emt 0:00:28]} 48. Rd5+ {[%emt 0:01:24]} g5 {[%emt 0:00:08]} 49. Bf7+ {[%emt 0:01:02]} Rxf7 {[%emt 0:00:05]} 50. hxg5 {[%emt 0:00:02]} Rxg5 {[%emt 0:00:08]} 51. Rxd6 {[%emt 0:00:44]} Rf4 {[%emt 0:00:15]} 0-1

[Event "Holiday Invitational-GM 2019"]
[Site "Charlotte"]
[Date "2019.12.29"]
[Round "6.3"]
[White "Iotov, Valentin"]
[Black "Kaliksteyn, Alexander"]
[Result "1/2-1/2"]
[ECO "A13"]
[WhiteElo "2516"]
[BlackElo "2381"]
[Annotator "ChessBase"]
[PlyCount "28"]
[EventDate "2019.12.26"]
[EventType "tourn"]
[EventCountry "USA"]
[SourceTitle "playchess.com"]
[Source "ChessBase"]
[SourceQuality "1"]
[TimeControl "5400+30"]

1. c4 {[%emt 0:00:00]} e6 {[%emt 0:01:59]} 2. Nf3 {[%emt 0:03:00]} d5 {[%emt 0:00:10]} 3. g3 {[%emt 0:00:01]} Nf6 {[%emt 0:00:54]} 4. Bg2 {[%emt 0:00:03]} dxc4 {[%emt 0:00:15]} 5. O-O {[%emt 0:03:03]} Nbd7 {[%emt 0:04:59]} 6. Qa4 {[%emt 0:06:25]} c5 {[%emt 0:01:46]} 7. Nc3 {[%emt 0:09:37]} a6 {[%emt 0:04:16]} 8. Qxc4 {[%emt 0:06:11]} b5 {[%emt 0:01:18]} 9. Qb3 {[%emt 0:00:03]} c4 {[%emt 0:06:35]} 10. Qc2 {[%emt 0:01:14]} Bb7 {[%emt 0:00:06]} 11. b3 {[%emt 0:12:13]} Rc8 {[%emt 0:03:58]} 12. bxc4 {[%emt 0:05:22]} Rxc4 {[%emt 0:00:21]} 13. d3 {[%emt 0:00:23]} Rc8 {[%emt 0:01:50]} 14. Qb2 {[%emt 0:10:07]} Qa5 {[%emt 0:03:19]} 1/2-1/2